fUST/lending_fUST_20240625
["ID","MTS","AMOUNT","RATE_DAILY","PERIOD"]
[330344366,1719277838318,-206.30386512,0.000189,2]
[330344368,1719277838329,-5397.90244343,0.0001899,2]
[330344795,1719277843540,-294656.74801757,0.0001899,2]
[330344796,1719277843550,-14783.55123003,0.00019,7]
[330344797,1719277843560,-680.61852448,0.00019,2]
[330344798,1719277843569,-500.0,0.00019,2]
[330344799,1719277843579,-87592.59309965,0.00019,2]
[330344800,1719277843588,-154.86836189,0.00019,2]
[330344801,1719277843597,-287.09196786,0.00019,2]
[330344802,1719277843607,-1210.20687069,0.00019,2]
[330344803,1719277843616,-151.0,0.00019,2]
[330344804,1719277843625,-2467.54239122,0.00019,2]
[330344805,1719277843636,-19115.49319492,0.00019,2]
[330344806,1719277843645,-906.64557398,0.00019,2]
[330344807,1719277843654,-176.24066652,0.00019,2]
[330344808,1719277843663,-250.0,0.00019041,2]
[330344809,1719277843673,-160.0,0.00019053,8]
[330344810,1719277843683,-185.53199498,0.000191,2]
[330344811,1719277843691,-341.29538515,0.00019166,2]
[330344812,1719277843701,-160.0,0.00019167,9]
[330344814,1719277843709,-33469.81185794,0.00019168,2]
[330345274,1719279044323,-154.96125969,0.00015119,2]
[330345276,1719279044333,-300.0,0.0001606,2]
[330345278,1719279044342,-30000.0,0.00016061,2]
[330345280,1719279044352,-876.0,0.00017766,2]
[330345282,1719279044362,-5926.19523831,0.00018,2]
[330345284,1719279044371,-811.14465118,0.00018,2]
[330345286,1719279044380,-242.84775224,0.00018,2]
[330345288,1719279044389,-825.92070736,0.00018,2]
[330345290,1719279044399,-6318.211139,0.000189,2]
[330345292,1719279044408,-453.74568299,0.00019,2]
[330345294,1719279044418,-1008.50572558,0.00019,2]
[330345297,1719279044430,-153.0,0.00019,2]
[330345299,1719279044439,-1234.93905768,0.00019,2]
[330345301,1719279044448,-9572.58965307,0.00019,2]
[330345303,1719279044457,-250.0,0.00019041,2]
[330345305,1719279044468,-417894.8335346,0.00019138,2]
[330346664,1719279633456,1091.2236097,0.000259,120]
[330346813,1719280238937,-250.03390634,0.00015998,2]
[330346879,1719280246370,200.28021359,0.00025,120]
[330346923,1719281361444,432.07559102,9.999e-05,2]
[330347012,1719281446200,154.9129547,9.999e-05,2]
[330347016,1719281503072,237.10690767,0.0001212,2]
[330347017,1719281619318,506.11750256,9.999e-05,2]
[330347018,1719281735885,202.31270184,9.999e-05,2]
[330347019,1719281802449,155.06860747,9.999e-05,2]
[330347020,1719281833614,829.35121063,9.999e-05,2]
[330347021,1719281947528,155.09449164,0.0001212,2]
[330347022,1719282085446,154.94108439,9.999e-05,2]
[330347023,1719282155713,155.09613193,9.999e-05,2]
[330347024,1719282234149,154.92833528,0.0001212,2]
[330347025,1719282236583,188.47381396,9.999e-05,2]
[330347062,1719282569535,154.97291577,9.999e-05,2]
[330347170,1719282639540,-695.48082098,0.00016061,2]
[330347242,1719282674802,634.37555272,0.0001212,2]
[330347247,1719283081451,878.01,0.00025,120]
[330347249,1719283394117,155.00327903,9.999e-05,2]
[330347285,1719283803807,2977.07,0.00026,120]
[330347319,1719283832854,-286.81202547,0.00014005,2]
[330347321,1719283832864,-294.673217,0.00015069,2]
[330347322,1719283832874,-378.86454992,0.00015961,2]
[330347324,1719283832884,-293.0,0.00016059,2]
[330347326,1719283832894,-151.0,0.0001606,2]
[330347328,1719283832903,-675.439531,0.0001606,2]
[330347330,1719283832913,-151.0,0.0001606,2]
[330347332,1719283832922,-151.0,0.0001606,2]
[330347333,1719283832932,-194.560937,0.0001606,2]
[330347334,1719283832941,-154.190986,0.0001606,2]
[330347335,1719283832950,-151.0,0.0001606,2]
[330347336,1719283832960,-151.0,0.0001606,2]
[330347338,1719283832970,-151.0,0.0001606,2]
[330347340,1719283832979,-151.0,0.0001606,2]
[330347341,1719283832989,-151.0,0.0001606,2]
[330347342,1719283832999,-151.0,0.0001606,2]
[330347343,1719283833008,-151.0,0.0001606,2]
[330347344,1719283833018,-178.167445,0.0001606,2]
[330347345,1719283833028,-198.58628372,0.0001606,2]
[330347346,1719283833040,-81.29491128,0.0001606,2]
[330347347,1719283833050,-151.0,0.0001606,2]
[330347348,1719283833060,-151.0,0.0001606,2]
[330347349,1719283833069,-151.0,0.0001606,2]
[330347350,1719283833078,-146.09553364,0.0001606,2]
[330347351,1719283833090,-30.84601936,0.0001606,2]
[330347352,1719283833099,-151.0,0.0001606,2]
[330347353,1719283833110,-151.0,0.0001606,2]
[330347354,1719283833118,-101.58337434,0.0001606,2]
[330347407,1719283838792,-49.41662566,0.0001606,2]
[330347408,1719283838803,-151.0,0.0001606,2]
[330347409,1719283838813,-151.0,0.0001606,2]
[330347411,1719283838823,-151.0,0.0001606,2]
[330347413,1719283838833,-151.0,0.0001606,2]
[330347414,1719283838842,-151.0,0.0001606,2]
[330347415,1719283838852,-176.54508666,0.0001606,2]
[330347416,1719283838864,-151.0,0.0001606,2]
[330347417,1719283838873,-151.0,0.0001606,2]
[330347418,1719283838883,-151.0,0.0001606,2]
[330347419,1719283838892,-151.0,0.0001606,2]
[330347420,1719283838901,-151.0,0.0001606,2]
[330347421,1719283838911,-186.919401,0.0001606,2]
[330347423,1719283838922,-29304.51917902,0.00016061,2]
[330347424,1719283838931,-151.0,0.00016061,2]
[330347426,1719283838940,-151.0,0.00016061,2]
[330347427,1719283838950,-151.00000026,0.00016061,2]
[330347428,1719283838959,-334.9496919,0.000166,2]
[330347429,1719283838969,-153.0,0.000166,2]
[330347430,1719283838979,-153.0,0.000166,2]
[330347431,1719283838989,-153.0,0.000166,2]
[330347432,1719283838999,-153.3498024,0.000166,2]
[330347433,1719283839009,-379.4359056,0.000166,2]
[330347434,1719283839022,-153.0,0.000166,2]
[330347435,1719283839032,-306.0,0.00017,2]
[330347436,1719283839042,-876.0,0.00017293,2]
[330347437,1719283839052,-5926.83200992,0.00018,2]
[330347438,1719283839062,-825.99151127,0.00018,2]
[330347439,1719283839072,-770.68050359,0.00018,2]
[330347440,1719283839081,-154.87063938,0.00018,2]
[330347441,1719283839091,-205.7840919,0.00018108,2]
[330347442,1719283839101,-205.7840921,0.00018108,2]
[330347443,1719283839111,-205.7840919,0.00018108,2]
[330347444,1719283839121,-207.6856548,0.00018108,2]
[330347445,1719283839130,-205.7840919,0.00018108,2]
[330347446,1719283839142,-205.7840921,0.00018108,2]
[330347447,1719283839151,-205.7840919,0.00018108,2]
[330347448,1719283839161,-156.0,0.0001812,2]
[330347449,1719283839175,-306.086378,0.00018201,2]
[330347450,1719283839184,-151.0,0.00018401,2]
[330347451,1719283839194,-151.0,0.00018592,2]
[330347452,1719283839204,-151.0,0.00018784,2]
[330347453,1719283839216,-2000.0,0.000188,2]
[330347454,1719283839226,-2000.0,0.000188,3]
[330347455,1719283839236,-2000.0,0.000188,5]
[330347456,1719283839246,-2000.0,0.000188,7]
[330347457,1719283839257,-151.0,0.00018976,2]
[330347458,1719283839267,-378.12140249,0.00019,2]
[330347459,1719283839278,-525.44398141,0.00019,2]
[330347460,1719283839288,-617.0,0.00019,2]
[330347461,1719283839297,-4787.0,0.00019,2]
[330347462,1719283839307,-1001.360509,0.00019,2]
[330347463,1719283839317,-250.0,0.00019041,2]
[330347464,1719283839327,-205.7840919,0.00019054,2]
[330347465,1719283839337,-205.7840921,0.00019054,2]
[330347466,1719283839348,-205.7840919,0.00019054,2]
[330347467,1719283839359,-205.7840921,0.00019054,2]
[330347468,1719283839369,-205.7840919,0.00019054,2]
[330347469,1719283839379,-205.144193,0.00019054,2]
[330347470,1719283839388,-165.50523505,0.00019058,2]
[330347471,1719283839399,-165.50523504,0.00019067,2]
[330347472,1719283839408,-376.53982142,0.00019068,2]
[330347473,1719283839418,-186312.87945637,0.00019157,2]
[330347792,1719284142984,1301.91806685,0.000211,27]
[330347796,1719284444892,-876.0,0.00017602,2]
[330347797,1719284444928,-5926.83200992,0.00018,2]
[330347798,1719284444968,-3197.16799008,0.00018889,2]
[330347818,1719284929538,16031.60878757,0.0001,10]
[330347819,1719284929570,14084.81212045,0.0001,10]
[330347844,1719285039629,-261.49705579,0.00016106,2]
[330348221,1719285064007,323.33840058,0.00012121,2]
[330348277,1719286240180,-239.06553075,0.00014001,2]
[330348278,1719286240191,-160.0,0.00014176,2]
[330348279,1719286240201,-331.50648118,0.00016006,2]
[330348280,1719286240211,-692.78057963,0.00016061,2]
[330348529,1719286737539,160.0,9.999e-05,2]
[330348530,1719286777479,160.0,0.0001212,2]
[330348531,1719286779613,544.47063608,9.999e-05,2]
[330348535,1719286818480,160.0,0.0001212,2]
[330348619,1719287438191,-250.89307863,0.00014176,2]
[330348620,1719287438201,-155.70208899,0.00014691,2]
[330348621,1719287438213,-917.42692171,0.00014691,2]
[330348622,1719287438223,-893.56049328,0.00014691,2]
[330348623,1719287438234,-29307.21942037,0.00016061,2]
[330348624,1719287438244,-287.11909617,0.00016061,2]
[330348625,1719287438254,-154.85288975,0.00016061,2]
[330348626,1719287438264,-876.0,0.00017739,2]
[330348627,1719287438275,-290.06817105,0.000179,2]
[330348628,1719287438285,-825.99151127,0.00018,2]
[330348629,1719287438295,-5525.24509963,0.00018,2]
[330348630,1719287438305,-600.0,0.00018401,2]
[330348631,1719287438315,-866.76839009,0.00018593,2]
[330348632,1719287438324,-4213.15360713,0.000189,2]
[330348633,1719287438336,-411.4378747,0.00018982,2]
[330348634,1719287438352,-151.0,0.00018984,2]
[330348635,1719287438362,-494.54428577,0.00018999,2]
[330348636,1719287438372,-378.12140249,0.00019,2]
[330348637,1719287438382,-525.44398141,0.00019,2]
[330348638,1719287438393,-5000.0,0.00019,2]
[330348639,1719287438403,-617.0,0.00019,2]
[330348640,1719287438413,-4787.0,0.00019,2]
[330348641,1719287438422,-197.50250864,0.00019023,2]
[330348642,1719287438435,-197.50250862,0.00019028,2]
[330348643,1719287438445,-197.50250862,0.00019033,2]
[330348644,1719287438455,-250.0,0.00019041,2]
[330348645,1719287438467,-1297.0,0.00019113,5]
[330348646,1719287438477,-177604.66411267,0.00019123,2]
[330348866,1719287943220,220.79374487,9.999e-05,2]
[330348867,1719287949303,747.44142354,0.0001,2]
[330348869,1719287988569,9237.56022709,0.0001,2]
[330348899,1719288576651,895.20436777,0.00012121,2]
[330348900,1719288577625,1060.50500218,0.00012121,2]
[330348901,1719288577949,-658.49281254,0.00014001,2]
[330348902,1719288578003,-625.97521903,0.00014001,2]
[330348903,1719288582335,32.51759351,0.00012121,2]
[330348904,1719288582371,1283.29288563,0.00012121,2]
[330349002,1719288638456,-287.11909617,0.00015,2]
[330349003,1719288638468,-30000.0,0.00016061,2]
[330349004,1719288638478,-876.0,0.00017556,2]
[330349005,1719288638487,-290.06817105,0.000179,2]
[330349006,1719288638496,-825.99151127,0.00018,2]
[330349007,1719288638506,-5926.83200992,0.00018,2]
[330349008,1719288638515,-600.0,0.00018401,2]
[330349010,1719288638526,-2174.71084291,0.00018592,2]
[330349012,1719288638536,-866.76839009,0.00018593,2]
[330349013,1719288638546,-151.0,0.000187,2]
[330349014,1719288638556,-3620.02538763,0.000187,3]
[330349015,1719288638565,-566.83621496,0.00018899,2]
[330349016,1719288638575,-4213.15360713,0.000189,2]
[330349017,1719288638584,-166.59439158,0.00018986,2]
[330349018,1719288638594,-151.0,0.00018987,2]
[330349019,1719288638604,-197.0012507,0.00019,2]
[330349020,1719288638614,-525.44398141,0.00019,2]
[330349021,1719288638624,-617.0,0.00019,2]
[330349022,1719288638634,-4787.0,0.00019,2]
[330349023,1719288638644,-197.50250864,0.00019001,2]
[330349024,1719288638654,-2000.0,0.00019022,2]
[330349025,1719288638663,-197.50250862,0.0001904,2]
[330349026,1719288638672,-250.0,0.00019041,2]
[330349027,1719288638682,-376.53982142,0.00019068,2]
[330349028,1719288638692,-411.4378747,0.00019068,2]
[330349029,1719288638701,-197.50250862,0.00019078,2]
[330349030,1719288638711,-182457.8573508,0.00019091,2]
[330349031,1719288638726,-22911.07713532,0.00019091,2]
[330349214,1719289832579,-598.51056336,0.00015,2]
[330349216,1719289832590,-346.57511029,0.00015961,2]
[330349254,1719289832764,-30000.0,0.00016061,2]
[330349258,1719289832776,-825.99151127,0.00018,2]
[330349260,1719289832785,-5926.83200992,0.00018,2]
[330349263,1719289832795,-876.0,0.00018065,2]
[330349266,1719289832804,-600.0,0.00018401,2]
[330349268,1719289832816,-2174.71084291,0.00018592,2]
[330349270,1719289832826,-866.76839009,0.00018593,2]
[330349272,1719289832835,-566.83621496,0.00018889,2]
[330349274,1719289832844,-166.59439158,0.00018899,2]
[330349276,1719289832854,-4213.15360713,0.000189,2]
[330349278,1719289832863,-376.53982142,0.00018972,2]
[330349280,1719289832872,-1807.14304318,0.00018981,2]
[330349282,1719289832882,-2000.0,0.00018981,2]
[330349284,1719289832892,-151.0,0.00018989,2]
[330349286,1719289832902,-378.12140249,0.00019,2]
[330349288,1719289832912,-525.44398141,0.00019,2]
[330349290,1719289832922,-617.0,0.00019,2]
[330349292,1719289832931,-4787.0,0.00019,2]
[330349294,1719289832941,-1001.360509,0.00019,2]
[330349296,1719289832950,-250.0,0.00019041,2]
[330349297,1719289832958,-16084.23496216,0.00019071,2]
[330349300,1719289832971,-1518.48172937,0.00019071,2]
[330349302,1719289832984,-872.77921152,0.00019071,2]
[330349367,1719289838568,-242643.76833145,0.00019071,2]
[330349369,1719289838582,-19135.41225324,0.00019071,2]
[330349984,1719291032058,-190.63621531,0.000149,2]
[330349985,1719291032071,-300.0,0.0001775,2]
[330349986,1719291032080,-2225.857526,0.00017751,2]
[330349987,1719291032089,-1956.9287,0.00017751,2]
[330349988,1719291032098,-169.95208,0.00017751,2]
[330349989,1719291032107,-249.269727,0.00017751,2]
[330349990,1719291032117,-151.0,0.00017949,2]
[330349991,1719291032126,-2225.857526,0.00017973,2]
[330349992,1719291032135,-1956.9287,0.00017973,2]
[330349993,1719291032146,-5926.83200992,0.00018,2]
[330349994,1719291032155,-901.737,0.00018082,2]
[330349995,1719291032164,-151.0,0.00018123,2]
[330349996,1719291032174,-30000.0,0.00018192,2]
[330349997,1719291032183,-2225.857526,0.00018194,2]
[330349998,1719291032193,-1956.9287,0.00018194,2]
[330349999,1719291032202,-307.9960519,0.00018219,2]
[330350000,1719291032212,-151.0,0.00018297,2]
[330350001,1719291032223,-600.0,0.00018401,2]
[330350002,1719291032232,-2225.857526,0.00018416,2]
[330350003,1719291032241,-1956.9287,0.00018416,2]
[330350004,1719291032250,-151.0,0.00018472,2]
[330350005,1719291032260,-614.48644818,0.00018593,2]
[330350006,1719291032271,-2225.857526,0.00018638,2]
[330350007,1719291032281,-1956.9287,0.00018638,2]
[330350008,1719291032291,-151.0,0.00018646,2]
[330350009,1719291032300,-153.0,0.00018793,2]
[330350010,1719291032310,-153.0,0.00018793,2]
[330350011,1719291032319,-153.0,0.00018793,2]
[330350012,1719291032328,-979.57956344,0.00018799,2]
[330350013,1719291032337,-151.0,0.0001882,2]
[330350014,1719291032347,-151.0,0.0001882,2]
[330350015,1719291032356,-979.57956343,0.00018869,2]
[330350016,1719291032366,-452.23581395,0.00018887,2]
[330350017,1719291032375,-322.24393956,0.00018887,2]
[330350018,1719291032385,-5027.88400716,0.00018888,2]
[330350019,1719291032394,-5706.03,0.00018899,4]
[330350020,1719291032404,-5706.03,0.00018899,4]
[330350021,1719291032414,-5706.03,0.00018899,4]
[330350022,1719291032423,-5706.03,0.00018899,4]
[330350023,1719291032432,-5706.03,0.00018899,4]
[330350024,1719291032441,-5706.03,0.00018899,4]
[330350025,1719291032450,-5706.03,0.00018899,4]
[330350026,1719291032460,-5706.03,0.00018899,4]
[330350027,1719291032470,-5706.03,0.00018899,4]
[330350028,1719291032479,-5706.03,0.00018899,4]
[330350029,1719291032488,-5706.03,0.00018899,4]
[330350030,1719291032498,-5706.03,0.00018899,4]
[330350031,1719291032507,-5706.03,0.00018899,4]
[330350032,1719291032516,-5706.03,0.00018899,4]
[330350033,1719291032526,-5706.03,0.00018899,4]
[330350034,1719291032535,-5706.03,0.00018899,4]
[330350035,1719291032545,-5706.03,0.00018899,4]
[330350036,1719291032560,-5706.03,0.00018899,4]
[330350037,1719291032569,-5706.03,0.00018899,4]
[330350038,1719291032577,-5706.03,0.00018899,4]
[330350039,1719291032588,-5706.03,0.00018899,4]
[330350040,1719291032597,-5706.03,0.00018899,4]
[330350041,1719291032607,-5706.03,0.00018899,4]
[330350042,1719291032617,-5706.19081657,0.00018899,4]
[330350043,1719291032627,-825.99151127,0.00018899,2]
[330350044,1719291032638,-24251.94776124,0.000189,2]
[330350068,1719291037965,-47939.22647238,0.000189,2]
[330350070,1719291037977,-20214.43827438,0.000189,2]
[330350143,1719291041096,-6135.7,0.000189,2]
[330350144,1719291041108,-264.0,0.000189,2]
[330350222,1719291046815,-219894.47318025,0.000189,2]
[330350520,1719292243358,-613.91,0.00016106,2]
[330350560,1719293433267,-341.76937014,0.00014075,2]
[330350562,1719293433277,-494.54428577,0.00015096,2]
[330350564,1719293433288,-454.45638301,0.00016006,2]
[330350566,1719293433298,-95.38755432,0.00016061,2]
[330350569,1719293433309,-747.83378746,0.00016061,2]
[330350780,1719293535834,300.0,0.000259,120]
[330350879,1719294638867,-300.0,0.0001606,2]
[330350880,1719294638877,-29156.77865822,0.00016061,2]
[330350881,1719294638887,-500.0,0.00017,2]
[330350882,1719294638897,-914.3418415,0.00017736,2]
[330350884,1719294638907,-876.0,0.00017792,2]
[330350886,1719294638916,-2417.34559194,0.00017999,2]
[330350888,1719294638925,-825.99151127,0.00018,2]
[330350889,1719294638937,-3437.82958927,0.00018,2]
[330350890,1719294638946,-811.14465118,0.00018,2]
[330350891,1719294638956,-500.0,0.00018,2]
[330350892,1719294638965,-5000.0,0.00018,2]
[330350893,1719294638974,-500.0,0.00018123,7]
[330350894,1719294638983,-500.0,0.00018123,7]
[330350895,1719294638993,-500.0,0.00018123,7]
[330350896,1719294639003,-500.0,0.00018123,7]
[330350897,1719294639012,-500.0,0.00018123,7]
[330350898,1719294639022,-500.0,0.00018123,7]
[330350899,1719294639031,-553.44,0.00018123,7]
[330350900,1719294639048,-500.0,0.00018123,7]
[330350901,1719294639063,-500.0,0.00018123,7]
[330350902,1719294639075,-500.0,0.00018123,7]
[330350903,1719294639086,-500.0,0.00018123,7]
[330350904,1719294639096,-500.0,0.00018123,7]
[330350905,1719294639107,-500.0,0.00018123,7]
[330350906,1719294639117,-500.0,0.00018123,7]
[330350907,1719294639127,-500.0,0.00018123,7]
[330350908,1719294639138,-167.25,0.00018123,7]
[330350909,1719294639148,-500.0,0.00018123,7]
[330350910,1719294639159,-415.69,0.00018123,7]
[330350911,1719294639169,-500.0,0.00018123,7]
[330350912,1719294639179,-151.0,0.00018846,2]
[330350913,1719294639189,-587.74773809,0.0001888,2]
[330350914,1719294639199,-2000.0,0.0001889,2]
[330350915,1719294639209,-48242.50576837,0.000189,2]
[330350916,1719294639219,-13073.81826298,0.000189,2]
[330350917,1719294639229,-124712.88471863,0.000189,2]
[330350946,1719294644265,-4067.92386925,0.000189,2]
[330350947,1719294644278,-752.00139605,0.000189,2]
[330351018,1719295508674,1305.66024038,0.000225,30]
[330351051,1719295833445,-451.6043818,0.00016097,2]
[330351053,1719295833458,-185.6564089,0.00016097,2]
[330351055,1719295833468,-300.0,0.0001617,2]
[330351057,1719295833478,-5623.01104925,0.00016171,2]
[330351059,1719295833490,-6101.6,0.00016171,2]
[330351104,1719295838464,-12213.2,0.00016171,2]
[330351170,1719295846517,-6062.18895075,0.00016171,2]
[330351171,1719295846527,-199.0,0.00017533,2]
[330351172,1719295846537,-154.96125969,0.00017533,2]
[330351173,1719295846547,-173.350388,0.00017751,2]
[330351174,1719295846557,-169.331082,0.00017751,2]
[330351175,1719295846566,-173.350388,0.00017973,2]
[330351176,1719295846576,-169.331082,0.00017973,2]
[330351177,1719295846586,-5926.83200992,0.00018,2]
[330351179,1719295846595,-876.0,0.00018076,2]
[330351180,1719295846610,-169.331082,0.00018194,2]
[330351182,1719295846619,-173.350388,0.00018194,2]
[330351183,1719295846628,-169.331082,0.00018416,2]
[330351184,1719295846637,-173.350388,0.00018416,2]
[330351185,1719295846646,-169.331082,0.00018638,2]
[330351186,1719295846655,-173.350388,0.00018638,2]
[330351187,1719295846664,-151.0,0.000187,2]
[330351188,1719295846673,-151.0,0.00018856,2]
[330351189,1719295846682,-825.99151127,0.00018889,2]
[330351190,1719295846691,-2417.34559194,0.00018899,2]
[330351191,1719295846700,-594.0,0.000189,2]
[330351192,1719295846709,-155.0,0.0001895,2]
[330351193,1719295846718,-197.0012507,0.00019,2]
[330351194,1719295846728,-525.44398141,0.00019,2]
[330351195,1719295846737,-154.83742071,0.00019,2]
[330351196,1719295846746,-504.52428349,0.00019,2]
[330351197,1719295846755,-504.51726892,0.00019,2]
[330351198,1719295846764,-2160.4814489,0.00019,2]
[330351199,1719295846773,-16737.08284799,0.00019,2]
[330351200,1719295846782,-907.91089441,0.00019,2]
[330351201,1719295846792,-155.02879695,0.00019011,2]
[330351202,1719295846801,-151.0,0.00019012,2]
[330351203,1719295846810,-151.0,0.00019012,2]
[330351204,1719295846819,-504.51726891,0.0001902,2]
[330351205,1719295846828,-504.51726891,0.00019039,2]
[330351206,1719295846837,-250.0,0.00019041,2]
[330351207,1719295846846,-504.51726891,0.00019059,2]
[330351208,1719295846858,-7722.02442891,0.00019068,2]
[330351209,1719295846871,-500.0,0.00019068,2]
[330351216,1719296062121,2038.0,0.000225,30]
[330351261,1719297046636,-30000.0,0.00016061,2]
[330351262,1719297046648,-397.64933516,0.00017651,2]
[330351263,1719297046657,-429.41984,0.00017751,2]
[330351264,1719297046668,-290.894388,0.00017751,2]
[330351265,1719297046679,-2000.0,0.00017782,2]
[330351266,1719297046689,-2000.0,0.0001779,2]
[330351267,1719297046699,-2417.34559194,0.00017798,2]
[330351268,1719297046708,-2417.34559194,0.00017798,2]
[330351269,1719297046718,-2000.0,0.00017799,2]
[330351270,1719297046727,-2000.0,0.00017808,2]
[330351271,1719297046737,-1976.65175497,0.00017808,2]
[330351272,1719297046748,-429.41984,0.00017973,2]
[330351273,1719297046759,-290.894388,0.00017973,2]
[330351274,1719297046769,-5926.83200992,0.00018,2]
[330351275,1719297046779,-876.0,0.00018066,2]
[330351276,1719297046788,-429.41984,0.00018194,2]
[330351277,1719297046798,-290.894388,0.00018194,2]
[330351278,1719297046807,-429.41984,0.00018416,2]
[330351279,1719297046817,-290.894388,0.00018416,2]
[330351280,1719297046827,-411.4378747,0.00018438,2]
[330351281,1719297046837,-429.41984,0.00018638,2]
[330351282,1719297046846,-290.894388,0.00018638,2]
[330351283,1719297046857,-28566.54226838,0.00018752,3]
[330351295,1719297599161,1000.0,0.00022,30]
[330351351,1719298238990,-25279.2235345,0.00016711,2]
[330351373,1719298246875,-4720.7764655,0.00016711,2]
[330351374,1719298246885,-2417.34559194,0.00016999,2]
[330351375,1719298246895,-1000.0,0.00017,7]
[330351376,1719298246904,-853.36142106,0.00017999,2]
[330351377,1719298246914,-825.99151127,0.00018,2]
[330351378,1719298246924,-190.77408721,0.00018,2]
[330351379,1719298246933,-1000.0,0.00018,8]
[330351380,1719298246943,-4114.52216414,0.00018,2]
[330351381,1719298246953,-876.0,0.00018016,2]
[330351382,1719298246962,-1433.45773162,0.00018752,3]
[330351383,1719298246972,-151.0,0.00018879,2]
[330351384,1719298246982,-151.0,0.00018879,2]
[330351385,1719298246992,-16897.8887208,0.0001888,2]
[330351386,1719298247006,-169.02816532,0.00018968,2]
[330351387,1719298247015,-453.74568299,0.00019,2]
[330351388,1719298247024,-1008.5297148,0.00019,2]
[330351389,1719298247033,-176.32396099,0.00019,2]
[330351390,1719298247046,-1000.0,0.00019,9]
[330351391,1719298247056,-1080.0,0.00019,2]
[330351392,1719298247066,-8369.0,0.00019,2]
[330351393,1719298247077,-169.02816531,0.00019005,2]
[330351394,1719298247087,-151.0,0.00019024,2]
[330351395,1719298247096,-151.0,0.00019024,2]
[330351396,1719298247106,-494.14797639,0.0001904,2]
[330351397,1719298247116,-250.0,0.00019041,2]
[330351398,1719298247126,-169.02816531,0.00019041,2]
[330351399,1719298247135,-6678.84253295,0.00019058,2]
[330351479,1719299439446,-2417.34559194,0.00015052,2]
[330351480,1719299439457,-2417.34559194,0.00015052,2]
[330351481,1719299439471,-1795.90200409,0.00016061,2]
[330351486,1719299441707,-28204.09799591,0.00016061,2]
[330351487,1719299441716,-608.12765801,0.00016117,2]
[330351488,1719299441726,-208.43260294,0.00016437,2]
[330351489,1719299441735,-1597.32311345,0.00018,2]
[330351506,1719299444191,-276.40441549,0.00018,2]
[330351518,1719300395164,-2417.34559194,0.00015019,2]
[330351519,1719300395184,-154.83742071,0.00016171,2]
[330351520,1719300395203,-2825.49865465,0.00017259,2]
[330351521,1719300395223,-3478.77441984,0.00017259,2]
[330351528,1719300632269,-30000.0,0.00016145,2]
[330351529,1719300632279,-381.57254751,0.00016337,2]
[330351530,1719300632290,-760.26147507,0.00016437,2]
[330351531,1719300632300,-169.0401433,0.00016437,2]
[330351532,1719300632309,-154.83742071,0.00017259,2]
[330351534,1719300632318,-287.11909617,0.00017259,2]
[330351536,1719300632327,-4053.10448098,0.00018,2]
[330351538,1719300632336,-825.99151127,0.00018,2]
[330351539,1719300632345,-876.0,0.00018646,2]
[330351541,1719300632355,-7535.24098376,0.000189,2]
[330351543,1719300632364,-169.02816531,0.0001897,2]
[330351545,1719300632373,-378.12140249,0.00019,2]
[330351547,1719300632384,-1008.5297148,0.00019,2]
[330351548,1719300632393,-1000.0,0.00019,18]
[330351549,1719300632402,-540.0,0.00019,2]
[330351550,1719300632411,-4184.0,0.00019,2]
[330351551,1719300632420,-250.0,0.00019041,2]
[330351552,1719300632429,-192.4222619,0.00019057,4]
[330351553,1719300632439,-1344.32288837,0.00019057,2]
[330351554,1719300632448,-134165.48108422,0.00019058,2]
[330352034,1719300647734,-645.77103657,0.000188,2]
[330352060,1719300739015,150.0,0.000259,120]